bitfinex-derivatives/quotes_BTCF0:USTF0_20250918
["timestamp","ask_amount","ask_price","bid_price","bid_amount"]
[1758169367470,0.02436,117590.0,117580.0,0.9798189]
[1758169367671,0.003,117590.0,117580.0,1.2374436]
[1758169368071,0.003,117590.0,117580.0,0.8766436]
[1758169368673,0.003,117590.0,117580.0,0.8002094]
[1758169368867,0.003,117590.0,117580.0,1.1610094]
[1758169369069,0.003,117590.0,117580.0,1.23745]
[1758169369270,0.003,117590.0,117580.0,1.1610094]
[1758169370476,0.003,117590.0,117580.0,0.64576]
[1758169370676,0.003,117590.0,117580.0,1.1610094]
[1758169370876,0.003,117590.0,117580.0,1.26795073]
[1758169371874,0.2819847,117590.0,117580.0,0.75270133]
[1758169372074,0.2819847,117590.0,117580.0,0.90715073]
[1758169372374,0.2819847,117590.0,117580.0,0.8002094]
[1758169372971,0.2819847,117590.0,117580.0,0.5425847]
[1758169373975,0.02436,117590.0,117580.0,0.5425847]
[1758169374276,0.2819847,117590.0,117580.0,0.28496]
[1758169374578,0.2819847,117590.0,117580.0,0.39952603]
[1758169374877,0.2819847,117590.0,117580.0,0.2925847]
[1758169375580,0.2819847,117590.0,117580.0,0.39952603]
[1758169376281,0.6427847,117590.0,117580.0,0.39952603]
[1758169380183,0.6427847,117590.0,117580.0,0.14190133]
[1758169380582,0.6427847,117590.0,117580.0,0.47600813]
[1758169380785,0.6427847,117590.0,117580.0,0.39952603]
[1758169381187,0.8927847,117590.0,117580.0,0.14190133]
[1758169381784,0.89306835,117590.0,117580.0,0.14190133]
[1758169382287,0.63516,117590.0,117580.0,0.14190133]
[1758169382586,0.89306835,117590.0,117580.0,0.14190133]
[1758169383482,0.89306835,117590.0,117580.0,0.21838499]
[1758169383680,0.89306835,117590.0,117580.0,0.11144366]
[1758169384792,0.89306835,117590.0,117580.0,0.07648366]
[1758169385087,0.89306835,117590.0,117580.0,0.09889366]
[1758169385888,0.89306835,117590.0,117580.0,0.11278366]
[1758169386090,0.89306835,117590.0,117580.0,0.07648366]
[1758169386091,0.89794835,117590.0,117580.0,0.07648366]
[1758169386885,0.89794835,117590.0,117570.0,0.07658366]
[1758169387086,1.41538835,117580.0,117570.0,0.09899366]
[1758169387284,1.41538835,117580.0,117570.0,0.09889366]
[1758169387480,1.41538835,117580.0,117570.0,0.07648366]
[1758169387685,1.42095835,117580.0,117570.0,0.07648366]
[1758169388792,1.42195835,117580.0,117570.0,0.07648366]
[1758169389189,1.9298667,117580.0,117570.0,0.07648366]
[1758169389594,0.89643835,117580.0,117570.0,0.07648366]
[1758169389788,1.67183835,117580.0,117570.0,0.09889366]
[1758169390495,0.89086835,117580.0,117570.0,0.0363]
[1758169390694,1.67179835,117580.0,117560.0,0.09047366]
[1758169390999,0.63986835,117570.0,117560.0,0.11288366]
[1758169391292,0.63986835,117570.0,117560.0,0.11278366]
[1758169391597,0.63986835,117570.0,117560.0,0.0363]
[1758169391796,0.63986835,117570.0,117560.0,0.14324133]
[1758169392290,0.9012067,117570.0,117560.0,0.10694133]
[1758169392496,0.9012067,117570.0,117560.0,0.07643735]
[1758169393301,0.9012067,117570.0,117550.0,0.01404]
[1758169393493,1.41510835,117560.0,117550.0,0.03645]
[1758169393794,1.1572,117560.0,117550.0,0.03635]
[1758169394096,1.41510835,117560.0,117550.0,0.03635]
[1758169394298,0.63986835,117560.0,117550.0,0.03635]
[1758169394491,1.41506835,117560.0,117550.0,0.03635]
[1758169395097,0.63986835,117560.0,117550.0,0.03635]
[1758169395297,1.41502835,117560.0,117550.0,0.03635]
[1758169395497,0.63986835,117560.0,117550.0,0.03635]
[1758169395697,1.42336079,117560.0,117550.0,0.03635]
[1758169396098,1.42336079,117560.0,117550.0,0.03835]
[1758169396407,0.64828079,117560.0,117550.0,0.03835]
[1758169396601,1.93870914,117560.0,117550.0,0.002]
[1758169396802,1.43100079,117560.0,117550.0,0.02441]
[1758169396998,0.64828079,117560.0,117550.0,0.02441]
[1758169397204,1.16621244,117560.0,117550.0,0.0383]
[1758169397408,1.43112079,117560.0,117550.0,0.002]
[1758169397904,1.93902914,117560.0,117550.0,0.002]
[1758169398710,1.94002914,117560.0,117550.0,0.001]
[1758169399711,1.94102914,117560.0,117550.0,0.001]
[1758169400112,1.94102914,117560.0,117540.0,0.0001]
[1758169400414,0.9026567,117550.0,117540.0,0.0001]
[1758169400606,0.02673,117540.0,117530.0,0.0001]
[1758169400809,1.6792267,117540.0,117520.0,0.01399]
[1758169401007,0.63986835,117530.0,117520.0,0.0364]
[1758169401207,0.63986835,117530.0,117520.0,0.0363]
[1758169402108,0.38196,117530.0,117520.0,0.0363]
[1758169402313,0.63986835,117530.0,117520.0,0.0373]
[1758169403713,0.63986835,117530.0,117520.0,0.0383]
[1758169406214,0.38196,117530.0,117520.0,0.0383]
[1758169406518,0.63986835,117530.0,117520.0,0.0383]
[1758169407918,0.70931728,117530.0,117520.0,0.0383]
[1758169408512,0.70931728,117530.0,117520.0,0.02441]
[1758169409812,0.70931728,117530.0,117520.0,0.03794]
[1758169411013,0.45140893,117530.0,117520.0,0.03794]
[1758169411206,0.70931728,117530.0,117520.0,0.03794]
[1758169411916,0.71331728,117530.0,117520.0,0.03694]
[1758169412320,0.71631728,117530.0,117520.0,0.03594]
[1758169413124,0.45840893,117530.0,117520.0,0.03594]
[1758169413320,0.07644893,117530.0,117520.0,0.90464835]
[1758169415725,0.007,117530.0,117520.0,0.90464835]
[1758169416026,0.007,117530.0,117520.0,0.64674]
[1758169416219,0.007,117530.0,117520.0,0.90464835]
[1758169417020,0.007,117530.0,117520.0,0.64674]
[1758169417221,0.007,117530.0,117520.0,0.90464835]
[1758169419528,0.007,117530.0,117520.0,0.65464835]
[1758169419719,0.03025,117530.0,117520.0,0.65464835]
[1758169421021,0.64895835,117530.0,117520.0,0.03594]
[1758169423325,0.64895835,117530.0,117520.0,0.11237735]
[1758169424322,0.64895835,117530.0,117520.0,0.03594]
[1758169428530,0.39105,117530.0,117520.0,0.29384835]
[1758169430926,0.3678,117530.0,117520.0,0.29384835]
[1758169431127,0.3678,117530.0,117520.0,0.3702857]
[1758169431426,0.007,117530.0,117520.0,0.9810857]
[1758169432130,0.64895835,117530.0,117520.0,0.03594]
[1758169432336,0.39105,117530.0,117520.0,0.03594]
[1758169433533,0.39105,117530.0,117520.0,0.29384835]
[1758169434229,0.64895835,117530.0,117520.0,0.03594]
[1758169434428,0.39105,117530.0,117520.0,0.29384835]
[1758169434734,0.39105,117530.0,117520.0,0.3702857]
[1758169435129,0.03025,117530.0,117520.0,0.3702857]
[1758169435632,0.03025,117530.0,117520.0,0.11237735]
[1758169436141,0.03025,117530.0,117520.0,0.3702857]
[1758169437236,0.007,117530.0,117520.0,0.3702857]
[1758169437537,0.007,117530.0,117520.0,0.7310857]
[1758169438231,0.007,117530.0,117520.0,0.65464835]
[1758169438639,0.007,117530.0,117520.0,0.76158968]
[1758169439735,0.007,117530.0,117520.0,1.09664468]
[1758169440739,0.007,117530.0,117520.0,0.98970335]
[1758169442238,0.007,117530.0,117520.0,1.09664468]
[1758169442638,0.007,117530.0,117520.0,0.98970335]
[1758169443843,0.007,117530.0,117520.0,1.35476879]
[1758169444041,0.0001,117540.0,117520.0,2.11278502]
[1758169444239,0.0001,117540.0,117530.0,2.14960782]
[1758169444436,0.0001,117550.0,117540.0,0.1206505]
[1758169444743,0.02331,117560.0,117550.0,0.03561]
[1758169444948,0.02321,117560.0,117550.0,0.65442623]
[1758169445946,0.28122623,117560.0,117550.0,0.37010246]
[1758169446143,0.28922623,117560.0,117550.0,0.37010246]
[1758169446743,0.29322623,117560.0,117550.0,0.37010246]
[1758169447345,0.80124246,117560.0,117550.0,0.11208623]
[1758169447548,1.16761246,117560.0,117550.0,0.07647623]
[1758169447839,1.95477246,117560.0,117540.0,0.19633756]
[1758169448042,0.64202623,117550.0,117540.0,0.03571]
[1758169448243,0.64202623,117550.0,117540.0,0.03561]
[1758169448446,0.64202623,117550.0,117540.0,0.11208623]
[1758169449244,0.64502623,117550.0,117540.0,0.03561]
[1758169449639,1.15792246,117550.0,117530.0,0.10659899]
[1758169449839,0.90004246,117540.0,117530.0,0.12938899]
[1758169450140,0.90004246,117540.0,117530.0,0.12928899]
[1758169450344,1.69424246,117540.0,117530.0,0.07647623]
[1758169450539,1.69424246,117540.0,117520.0,0.34812246]
[1758169450741,0.64202623,117530.0,117520.0,0.37091246]
[1758169450942,0.64202623,117530.0,117520.0,0.37081246]
[1758169451840,0.64202623,117530.0,117520.0,0.11279623]
[1758169452342,0.89502623,117530.0,117520.0,0.11279623]
[1758169453048,0.90045623,117530.0,117520.0,0.07647623]
[1758169453738,0.90045623,117530.0,117520.0,0.09926623]
[1758169454846,0.90045623,117530.0,117520.0,0.02279]
[1758169455146,0.96680268,117530.0,117520.0,0.02279]
[1758169455650,1.22481891,117530.0,117510.0,0.34751246]
[1758169455843,1.68652246,117520.0,117510.0,0.03581]
[1758169456043,1.68652246,117520.0,117510.0,0.02289]
[1758169456447,1.68652246,117520.0,117510.0,0.09936623]
[1758169456649,1.68652246,117520.0,117510.0,0.02289]
[1758169457238,1.94201246,117520.0,117500.0,0.33459246]
[1758169457444,1.94201246,117520.0,117490.0,0.10694133]
[1758169457445,1.38484869,117510.0,117490.0,0.10694133]
[1758169457638,1.66339246,117500.0,117490.0,0.03561]
[1758169457847,1.66339246,117500.0,117490.0,0.29362623]
[1758169457848,0.61881623,117500.0,117490.0,0.29362623]
[1758169458141,1.40533623,117500.0,117490.0,0.29362623]
[1758169458344,0.61881623,117500.0,117490.0,0.29362623]
[1758169458546,1.40533623,117500.0,117490.0,0.29362623]
[1758169458751,1.40525623,117500.0,117490.0,0.29362623]
[1758169458950,1.40625623,117500.0,117490.0,0.29362623]
[1758169459153,1.66427246,117500.0,117490.0,0.03561]
[1758169460048,1.66427246,117500.0,117490.0,0.29362623]
[1758169460646,1.66427246,117500.0,117490.0,0.03561]
[1758169460647,0.87783246,117500.0,117490.0,0.03561]
[1758169460849,1.66431246,117500.0,117490.0,0.03561]
[1758169461547,0.61981623,117500.0,117490.0,0.29362623]
[1758169461854,0.001,117500.0,117490.0,0.29362623]
[1758169462446,0.001,117500.0,117490.0,0.80164246]
[1758169462647,0.001,117500.0,117490.0,0.54362623]
[1758169462948,0.001,117500.0,117490.0,0.80164246]
[1758169463648,0.001,117500.0,117490.0,0.28561]
[1758169463847,1.91487246,117500.0,117490.0,0.01282]
[1758169464055,1.91487246,117500.0,117490.0,0.03561]
[1758169464255,1.91371246,117500.0,117490.0,0.03561]
[1758169464553,1.91371246,117500.0,117490.0,0.03661]
[1758169464950,1.39768,117500.0,117490.0,0.03661]
[1758169465152,1.91371246,117500.0,117490.0,0.03661]
[1758169465654,1.91371246,117500.0,117490.0,0.01382]
[1758169466845,1.91371246,117500.0,117490.0,0.03661]
[1758169468552,0.87683246,117500.0,117490.0,0.03661]
[1758169468752,1.66327246,117500.0,117490.0,0.03661]
[1758169468949,1.66319246,117500.0,117490.0,0.29462623]
[1758169469549,1.66315246,117500.0,117490.0,0.29462623]
[1758169469955,0.87683246,117500.0,117490.0,0.03661]
[1758169470155,1.66295246,117500.0,117490.0,0.03661]
[1758169470656,1.66299246,117500.0,117490.0,0.03661]
[1758169471056,1.92084869,117500.0,117490.0,0.01382]
[1758169471251,0.3608,117500.0,117490.0,0.29399623]
[1758169471556,1.40477623,117500.0,117490.0,0.29399623]
[1758169472151,1.66279246,117500.0,117490.0,0.03598]
[1758169472758,1.14676,117500.0,117490.0,0.03598]
[1758169472955,1.66279246,117500.0,117490.0,0.03598]
[1758169473351,0.87683246,117500.0,117490.0,0.03598]
[1758169473649,1.66279246,117500.0,117490.0,0.03598]
[1758169473849,1.66275246,117500.0,117490.0,0.03598]
[1758169474157,0.87683246,117500.0,117490.0,0.03598]
[1758169474358,1.66267246,117500.0,117490.0,0.03598]
[1758169474852,1.66259246,117500.0,117490.0,0.03598]
[1758169475248,1.66259246,117500.0,117490.0,0.29399623]
[1758169475451,1.66259246,117500.0,117490.0,0.03598]
[1758169475762,0.87683246,117500.0,117490.0,0.29399623]
[1758169476059,1.66235246,117500.0,117490.0,0.29399623]
[1758169476260,1.66235246,117500.0,117490.0,0.29409623]
[1758169476657,1.66235246,117500.0,117490.0,0.03608]
[1758169479157,0.87683246,117500.0,117490.0,0.03608]
[1758169479358,1.66187246,117500.0,117490.0,0.03608]
[1758169479561,1.66183246,117500.0,117490.0,0.03608]
[1758169479763,0.87683246,117500.0,117490.0,0.03608]
[1758169480064,1.66183246,117500.0,117490.0,0.03608]
[1758169481359,1.66183246,117500.0,117490.0,0.03508]
[1758169481961,1.40381623,117500.0,117490.0,0.29309623]
[1758169482261,0.61881623,117500.0,117490.0,0.29309623]
[1758169482463,1.40333623,117500.0,117490.0,0.29309623]
[1758169482651,1.40329623,117500.0,117490.0,0.29309623]
[1758169483853,1.14528,117500.0,117490.0,0.29309623]
[1758169484056,1.40329623,117500.0,117490.0,0.03508]
[1758169484257,1.40329623,117500.0,117490.0,0.29309623]
[1758169484459,1.66123246,117500.0,117490.0,0.29309623]
[1758169484764,1.40321623,117500.0,117490.0,0.29309623]
[1758169485765,1.1452,117500.0,117490.0,0.29309623]
[1758169486067,1.40321623,117500.0,117490.0,0.29309623]
[1758169486864,0.361,117510.0,117490.0,1.13618946]
[1758169487060,0.38252,117540.0,117530.0,0.1203981]
[1758169487364,0.72146389,117560.0,117550.0,0.03535]
[1758169487556,0.04278587,117560.0,117550.0,0.55138246]
[1758169487753,0.02106587,117560.0,117550.0,0.63641606]
[1758169487964,1.39485832,117580.0,117550.0,0.91218246]
[1758169488165,1.43621496,117580.0,117570.0,0.29336623]
[1758169488363,1.43621496,117580.0,117570.0,0.03535]
[1758169488563,1.17819873,117580.0,117570.0,0.29336623]
[1758169488764,1.43621496,117580.0,117570.0,0.29336623]
[1758169488961,1.44451243,117580.0,117570.0,0.29336623]
[1758169489162,1.45051243,117580.0,117570.0,0.29336623]
[1758169489969,1.45951243,117580.0,117570.0,0.29336623]
[1758169490463,1.45121496,117580.0,117570.0,0.03535]
[1758169490660,1.44521496,117580.0,117570.0,0.03535]
[1758169490861,1.45121496,117580.0,117570.0,0.03535]
[1758169492856,1.70923119,117580.0,117570.0,0.03535]
[1758169493060,1.70923119,117580.0,117560.0,0.01319]
[1758169493371,0.90894246,117570.0,117550.0,0.01319]
[1758169493665,1.68319246,117560.0,117540.0,0.28852756]
[1758169493860,0.64053623,117550.0,117540.0,0.05267133]
[1758169495065,0.65053623,117550.0,117540.0,0.05267133]
[1758169496368,0.65053623,117550.0,117530.0,0.01319]
[1758169496566,1.68387246,117540.0,117530.0,0.03535]
[1758169496966,1.16784,117540.0,117530.0,0.03535]
[1758169497167,1.68387246,117540.0,117530.0,0.03535]
[1758169497368,1.75266235,117540.0,117530.0,0.03535]
[1758169497866,1.75766235,117540.0,117530.0,0.03535]
[1758169498262,1.76066235,117540.0,117530.0,0.03535]
[1758169498874,1.24462989,117540.0,117530.0,0.03535]
[1758169499072,1.76066235,117540.0,117530.0,0.03535]
[1758169499272,1.76066235,117540.0,117530.0,0.08107203]
[1758169500473,1.76142235,117540.0,117530.0,0.08107203]
[1758169500873,1.24538989,117540.0,117530.0,0.08107203]
[1758169501075,1.76142235,117540.0,117530.0,0.08107203]
[1758169501674,1.76142235,117540.0,117530.0,0.04572203]
[1758169502378,1.76142235,117540.0,117530.0,0.06864203]
[1758169503776,1.50351736,117540.0,117530.0,0.06864203]
[1758169504080,1.76164483,117540.0,117520.0,0.03061059]
[1758169504284,0.64156747,117530.0,117520.0,0.03621]
[1758169504579,0.64156747,117530.0,117520.0,0.03611]
[1758169505775,1.42692747,117530.0,117520.0,0.03611]
[1758169505981,1.43092747,117530.0,117520.0,0.03611]
[1758169506569,1.4392574,117530.0,117520.0,0.03611]
[1758169507377,1.4392574,117530.0,117520.0,0.09727076]
[1758169507580,1.4422574,117530.0,117520.0,0.09727076]
[1758169508983,1.4526474,117530.0,117520.0,0.06116076]
[1758169511185,0.6672874,117530.0,117520.0,0.06116076]
[1758169511386,1.4414174,117530.0,117520.0,0.09715076]
[1758169514292,1.4411774,117530.0,117520.0,0.09715076]
[1758169516191,1.4411774,117530.0,117520.0,0.03599]
[1758169516692,1.4411774,117530.0,117510.0,0.07634287]
[1758169516896,1.16008494,117520.0,117490.0,0.12001133]
[1758169517088,0.97972747,117500.0,117490.0,0.12001133]
[1758169517288,0.97972747,117500.0,117490.0,0.01307]
[1758169517491,1.50552,117500.0,117490.0,0.0742586]
[1758169517688,1.76364747,117500.0,117490.0,0.0742586]
[1758169517893,1.78619341,117500.0,117490.0,0.0742586]
[1758169518191,1.78619341,117500.0,117490.0,0.01307]
[1758169518799,1.00227341,117500.0,117490.0,0.01307]
[1758169519188,1.78595341,117500.0,117490.0,0.01307]
[1758169521396,1.85471227,117500.0,117490.0,0.01307]
[1758169524395,1.85423227,117500.0,117490.0,0.01307]
[1758169524592,1.07103227,117500.0,117490.0,0.01307]
[1758169524792,1.85423227,117500.0,117490.0,0.01307]
[1758169525599,1.85423227,117500.0,117490.0,0.03599]
[1758169525788,1.85423227,117500.0,117490.0,0.01307]
[1758169525989,1.85423227,117500.0,117480.0,0.01317]
[1758169526185,0.64147341,117490.0,117480.0,0.01307]
[1758169527391,0.64147341,117490.0,117480.0,0.01407]
[1758169528093,1.42427341,117490.0,117480.0,0.03699]
[1758169528598,0.64147341,117490.0,117480.0,0.03699]
[1758169528897,1.42423341,117490.0,117480.0,0.03699]
[1758169530797,0.64147341,117490.0,117480.0,0.03699]
[1758169531002,1.42403341,117490.0,117480.0,0.03699]
[1758169531299,0.64147341,117490.0,117480.0,0.03699]
[1758169531496,1.42399341,117490.0,117480.0,0.03699]
[1758169532302,1.42395341,117490.0,117480.0,0.03699]
[1758169532794,1.14328,117490.0,117480.0,0.03699]
[1758169533095,1.42395341,117490.0,117480.0,0.03699]
[1758169535797,0.64147341,117490.0,117480.0,0.03699]
[1758169536001,1.40379341,117490.0,117480.0,0.03709]
[1758169538602,1.40335341,117490.0,117480.0,0.03709]
[1758169539794,1.38104707,117490.0,117480.0,0.03709]
[1758169540397,0.59916707,117490.0,117480.0,0.28709]
[1758169540602,1.12236,117490.0,117480.0,0.54545707]
[1758169540903,0.3408,117490.0,117480.0,0.54545707]
[1758169541094,1.12232,117490.0,117480.0,0.54545707]
[1758169541296,0.3408,117490.0,117480.0,0.54545707]
[1758169541498,1.12224,117490.0,117480.0,0.54545707]
[1758169542198,0.78144,117490.0,117480.0,0.54545707]
[1758169542600,0.68812593,117500.0,117490.0,0.0133]
[1758169542798,1.46920593,117500.0,117490.0,0.03612]
[1758169543200,0.68792593,117500.0,117490.0,0.03612]
[1758169543394,1.21075886,117500.0,117490.0,0.54448707]
[1758169543807,0.42955886,117500.0,117490.0,0.54448707]
[1758169544209,1.21071886,117500.0,117490.0,0.54448707]
[1758169544506,1.21067886,117500.0,117490.0,0.54448707]
[1758169544707,0.42955886,117500.0,117490.0,0.54448707]
[1758169544908,0.84979886,117500.0,117490.0,0.54448707]
[1758169545509,0.06875886,117500.0,117490.0,0.54448707]
[1758169545705,2.41244707,117510.0,117490.0,0.54448707]
[1758169546008,2.41234707,117510.0,117500.0,0.03602]
[1758169546208,1.40004707,117510.0,117500.0,0.03612]
[1758169546899,1.40204707,117510.0,117500.0,0.03612]
[1758169547308,1.40104707,117510.0,117500.0,0.03612]
[1758169547608,1.40204707,117510.0,117500.0,0.03612]
[1758169548208,1.14368,117510.0,117500.0,0.03612]
[1758169548407,1.14268,117510.0,117500.0,0.29448707]
[1758169548609,0.002,117510.0,117500.0,0.29448707]
[1758169548810,0.78276,117510.0,117500.0,0.29448707]
[1758169549399,0.78276,117510.0,117500.0,0.03612]
[1758169549806,0.7826,117510.0,117500.0,0.03612]
[1758169551614,0.7826,117510.0,117500.0,0.29448707]
[1758169552013,0.002,117510.0,117500.0,0.29448707]
[1758169552214,0.78236,117510.0,117500.0,0.29448707]
[1758169552516,0.002,117510.0,117500.0,0.29448707]
[1758169553010,0.78224,117510.0,117500.0,0.29448707]
[1758169553910,0.002,117510.0,117500.0,0.29448707]
[1758169554116,0.78216,117510.0,117500.0,0.29448707]
[1758169554910,0.78216,117510.0,117500.0,0.65528707]
[1758169555215,0.002,117510.0,117500.0,0.65528707]
[1758169555916,0.002,117510.0,117500.0,0.90528707]
[1758169560114,0.002,117510.0,117500.0,0.64692]
[1758169560313,0.002,117510.0,117500.0,0.90528707]
[1758169561219,0.002,117510.0,117500.0,0.64692]
[1758169561420,0.002,117510.0,117500.0,0.90528707]
[1758169563616,0.002,117510.0,117500.0,0.96644882]
[1758169563817,0.002,117510.0,117500.0,1.22438787]
[1758169565318,0.002,117510.0,117500.0,1.30945777]
[1758169568826,0.002,117510.0,117500.0,1.05945777]
[1758169570426,0.002,117510.0,117500.0,1.31761083]
[1758169570723,0.002,117510.0,117500.0,1.05945777]
[1758169571531,0.002,117510.0,117500.0,0.54315165]
[1758169571732,0.002,117510.0,117500.0,1.05945777]
[1758169572433,0.002,117510.0,117500.0,0.97438787]
[1758169573535,0.002,117510.0,117500.0,1.05945777]
[1758169578237,0.002,117510.0,117500.0,0.99829602]
[1758169580139,0.002,117510.0,117500.0,0.91322612]
[1758169581341,0.002,117510.0,117500.0,0.98952618]
[1758169581840,0.002,117510.0,117500.0,0.91322612]
[1758169583940,0.002,117510.0,117500.0,1.27402612]
[1758169584142,0.002,117510.0,117500.0,1.35032618]
[1758169585243,0.002,117510.0,117500.0,1.43539608]
[1758169585636,0.002,117510.0,117500.0,1.35032618]
[1758169585942,0.002,117510.0,117500.0,1.27402612]
[1758169586439,0.002,117510.0,117500.0,0.75772]
[1758169586641,0.002,117510.0,117500.0,1.27402612]
[1758169587944,0.51015306,117510.0,117500.0,0.09738605]
[1758169588140,0.51015306,117510.0,117500.0,0.35553911]
[1758169589344,1.12910612,117510.0,117500.0,0.0134]
[1758169589548,0.87095306,117510.0,117500.0,0.03538]
[1758169590044,1.12910612,117510.0,117500.0,0.09664605]
[1758169590445,0.87095306,117510.0,117500.0,0.09664605]
[1758169591139,1.13053149,117510.0,117500.0,0.09664605]
[1758169591340,0.87237843,117510.0,117500.0,0.09664605]
[1758169593944,1.64949843,117510.0,117500.0,0.09664605]
[1758169594344,1.64949843,117510.0,117500.0,0.35479911]
[1758169594540,0.87237843,117510.0,117500.0,0.35479911]
[1758169594740,1.64949843,117510.0,117500.0,0.35479911]
[1758169595346,1.64949843,117510.0,117500.0,0.09664605]
[1758169597245,0.87237843,117510.0,117500.0,0.09664605]
[1758169597446,1.64953843,117510.0,117500.0,0.35479911]
[1758169597647,1.64953843,117510.0,117500.0,0.09664605]
[1758169597844,1.64953843,117510.0,117500.0,0.35479911]
[1758169599144,1.64953843,117510.0,117500.0,0.09664605]
[1758169599349,1.39953843,117510.0,117500.0,0.09664605]
[1758169600246,1.39953843,117510.0,117500.0,0.03538]
[1758169601247,1.39953843,117510.0,117500.0,0.02198]
[1758169601447,1.39953843,117510.0,117480.0,0.03974972]
[1758169601448,2.16584455,117510.0,117480.0,0.03974972]
[1758169601748,1.23790612,117490.0,117470.0,0.03531]
[1758169601946,1.39691306,117480.0,117470.0,0.11161006]
[1758169602338,0.87853149,117480.0,117470.0,0.03531]
[1758169602543,1.65649149,117480.0,117470.0,0.03531]
[1758169602744,1.39833843,117480.0,117470.0,0.03531]
[1758169602950,1.65649149,117480.0,117470.0,0.03531]
[1758169604356,1.65649149,117480.0,117470.0,0.03631]
[1758169605151,1.72480596,117480.0,117470.0,0.03631]
[1758169609660,0.94684596,117480.0,117470.0,0.03631]
[1758169609860,1.72428596,117480.0,117470.0,0.03631]
[1758169610552,1.72428596,117480.0,117470.0,0.62076312]
[1758169610553,0.43053984,117480.0,117470.0,0.62076312]
[1758169610758,0.6886929,117480.0,117470.0,0.37076312]
[1758169610960,1.4661729,117480.0,117470.0,0.37076312]
[1758169614871,1.4661729,117480.0,117470.0,0.11261006]
[1758169615071,1.4661729,117480.0,117470.0,0.37076312]
[1758169616372,1.4660529,117480.0,117470.0,0.37076312]
[1758169619776,1.20789984,117480.0,117470.0,0.37076312]
[1758169620072,1.4660529,117480.0,117470.0,0.37076312]
[1758169620266,1.1052529,117480.0,117470.0,0.37086312]
[1758169621075,0.3278929,117480.0,117470.0,0.37086312]
[1758169621272,1.1052529,117480.0,117470.0,0.37086312]
[1758169621676,1.1052529,117480.0,117470.0,0.29456306]
[1758169622074,0.84709984,117480.0,117470.0,0.37086312]
[1758169622876,0.84709984,117480.0,117470.0,0.29456306]
[1758169623181,0.06973984,117480.0,117470.0,0.29456306]
[1758169623474,0.06973984,117480.0,117470.0,0.37086312]
[1758169624480,0.06973984,117480.0,117470.0,0.11271006]
[1758169624672,0.00142537,117480.0,117470.0,2.10226878]
[1758169624872,0.00142537,117480.0,117470.0,1.94087612]
[1758169625181,0.00142537,117480.0,117470.0,2.01736713]
[1758169625879,0.00142537,117480.0,117470.0,1.7593088]
[1758169627079,0.00142537,117480.0,117470.0,2.04800691]
[1758169627484,1.55684379,117480.0,117470.0,0.14375133]
[1758169627779,1.59035316,117480.0,117470.0,0.03681]
[1758169628081,1.28699316,117480.0,117470.0,0.11330727]
[1758169628280,1.64779316,117480.0,117470.0,0.11330727]
[1758169628681,1.64779316,117480.0,117470.0,0.03681]
[1758169629777,0.68139754,117480.0,117470.0,0.03681]
[1758169629982,0.43139754,117480.0,117470.0,0.29505779]
[1758169630381,0.43139754,117480.0,117470.0,0.03681]
[1758169630681,0.43139754,117480.0,117470.0,0.11330727]
[1758169631383,0.68964533,117480.0,117470.0,0.11330727]
[1758169631984,0.68964533,117480.0,117470.0,0.09121727]
[1758169632378,0.68964533,117480.0,117470.0,0.11330727]
[1758169632577,0.68964533,117480.0,117470.0,0.03681]
[1758169632773,0.93964533,117480.0,117470.0,0.03681]
[1758169634384,0.93964533,117480.0,117470.0,0.01397]
[1758169634385,1.19789312,117480.0,117470.0,0.01397]
[1758169634592,1.97589312,117480.0,117470.0,0.01397]
[1758169639294,1.97589312,117480.0,117470.0,0.0011]
[1758169640591,1.45939754,117480.0,117470.0,0.01397]
[1758169640895,1.97589312,117480.0,117470.0,0.01397]
[1758169644092,1.20879754,117480.0,117470.0,0.03606]
[1758169644284,1.46704533,117480.0,117470.0,0.03606]
[1758169644488,0.68964533,117480.0,117470.0,0.03606]
[1758169644688,1.20879754,117480.0,117470.0,0.03506]
[1758169644991,1.46704533,117480.0,117470.0,0.11155727]
[1758169646591,1.20879754,117480.0,117470.0,0.36980506]
[1758169646793,1.46704533,117480.0,117470.0,0.11155727]
[1758169649292,0.68964533,117480.0,117470.0,0.11155727]
[1758169649591,1.46704533,117480.0,117470.0,0.11155727]
[1758169650094,1.46704533,117480.0,117470.0,0.03506]
[1758169651996,1.46704533,117480.0,117470.0,0.11155727]
[1758169652295,0.68964533,117480.0,117470.0,0.11155727]
[1758169652495,0.68964533,117480.0,117470.0,0.36980506]
[1758169653002,0.68964533,117480.0,117470.0,0.11155727]
[1758169653899,0.32884533,117480.0,117470.0,0.11155727]
[1758169655009,0.32884533,117480.0,117470.0,0.36980506]
[1758169655499,0.07059754,117480.0,117470.0,0.36980506]
[1758169656993,0.07059754,117480.0,117470.0,0.11155727]
[1758169657699,0.32884533,117480.0,117470.0,0.11155727]
[1758169659598,0.68964533,117480.0,117470.0,0.11155727]
[1758169661203,0.43139754,117480.0,117470.0,0.11155727]
[1758169661404,0.68964533,117480.0,117470.0,0.11155727]
[1758169661906,0.43139754,117480.0,117470.0,0.03506]
[1758169662099,0.07059754,117480.0,117470.0,0.29330779]
[1758169662404,0.32884533,117480.0,117470.0,0.03506]
[1758169665707,0.07059754,117480.0,117470.0,0.03506]
[1758169665902,0.32884533,117480.0,117470.0,0.03506]
[1758169667300,0.32884533,117480.0,117470.0,0.11155727]
[1758169668004,0.07059754,117480.0,117470.0,0.11155727]
[1758169668207,0.32884533,117480.0,117470.0,0.11155727]
[1758169670014,0.07059754,117480.0,117470.0,0.11155727]
[1758169670308,0.32884533,117480.0,117470.0,0.11155727]
[1758169670501,0.32884533,117480.0,117470.0,0.03506]
[1758169671505,0.94789312,117480.0,117470.0,0.01297]
[1758169672502,0.94789312,117480.0,117470.0,0.0001]
[1758169672707,1.19789312,117480.0,117470.0,0.0001]
[1758169672904,1.71688533,117480.0,117470.0,0.01344]
[1758169673105,1.97513312,117480.0,117470.0,0.01344]
[1758169674006,1.19789312,117480.0,117470.0,0.01344]
[1758169674207,0.93964533,117480.0,117470.0,0.01344]
[1758169674408,1.19789312,117480.0,117470.0,0.01344]
[1758169674908,0.93964533,117480.0,117470.0,0.03525]
[1758169675210,1.19789312,117480.0,117470.0,0.03525]
[1758169675516,1.19789312,117480.0,117470.0,0.01344]
[1758169676407,1.19789312,117480.0,117470.0,0.0001]
[1758169681713,0.94789312,117480.0,117470.0,0.0001]
[1758169681907,0.43139754,117480.0,117470.0,0.03519]
[1758169682110,0.68964533,117480.0,117470.0,0.03519]